[Event "Titled Tuesday Blitz June 27 Late 2023"]
[White "Veiga, Jose Francisco R P Neves"]
[Black "Kielinkei"]
[WhiteFideId "1930087"]
[WhiteElo "2667"]
[BlackElo "2467"]
[Result "1-0"]
[Round "4"]
[TimeControl "180+2"]
[Date "2023.06.27"]
[WhiteClock "0:00:29"]
[BlackClock "0:00:06"]
[Board "92"]

1. c4 {[%clk 0:02:52]}  e5 {[%clk 0:02:59]} 2. Nc3 {[%clk 0:02:52]}  Nc6 {[%clk 0:02:57]} 3. Nf3 {[%clk 0:02:52]}  Nf6 {[%clk 0:02:48]} 4. e4 {[%clk 0:02:51]}  g6 {[%clk 0:02:41]} 5. d4 {[%clk 0:02:45]}  exd4 {[%clk 0:02:40]} 6. Nxd4 {[%clk 0:02:46]}  Bg7 {[%clk 0:02:30]} 7. Nxc6 {[%clk 0:02:39]}  bxc6 {[%clk 0:02:31]} 8. Be2 {[%clk 0:02:36]}  d6 {[%clk 0:02:28]} 9. O-O {[%clk 0:02:36]}  O-O {[%clk 0:02:28]} 10. Qc2 {[%clk 0:02:34]}  Re8 {[%clk 0:02:27]} 11. Bf4 {[%clk 0:02:27]}  Ng4 {[%clk 0:02:21]} 12. Rfd1 {[%clk 0:02:18]}  Qe7 {[%clk 0:02:18]} 13. f3 {[%clk 0:02:13]}  Be5 {[%clk 0:02:04]} 14. Bxe5 {[%clk 0:02:05]}  Nxe5 {[%clk 0:02:04]} 15. f4 {[%clk 0:02:04]}  Ng4 {[%clk 0:02:02]} 16. Bxg4 {[%clk 0:02:02]}  Bxg4 {[%clk 0:02:01]} 17. Re1 {[%clk 0:02:03]}  Be6 {[%clk 0:02:00]} 18. b3 {[%clk 0:02:02]}  Qf6 {[%clk 0:01:48]} 19. Rf1 {[%clk 0:01:55]}  Rad8 {[%clk 0:01:38]} 20. Rae1 {[%clk 0:01:53]}  Qd4+ {[%clk 0:01:36]} 21. Kh1 {[%clk 0:01:52]}  f6 {[%clk 0:01:08]} 22. Rd1 {[%clk 0:01:48]}  Qc5 {[%clk 0:01:06]} 23. Qd2 {[%clk 0:01:20]}  Bf7 {[%clk 0:01:00]} 24. Rf3 {[%clk 0:01:05]}  Qb4 {[%clk 0:00:47]} 25. Rd3 {[%clk 0:01:03]}  Re7 {[%clk 0:00:43]} 26. Nd5 {[%clk 0:00:55]}  Qxd2 {[%clk 0:00:43]} 27. Nxe7+ {[%clk 0:00:55]}  Kf8 {[%clk 0:00:44]} 28. Nxg6+ {[%clk 0:00:55]}  hxg6 {[%clk 0:00:44]} 29. R1xd2 {[%clk 0:00:54]}  Ke7 {[%clk 0:00:44]} 30. Kg1 {[%clk 0:00:54]}  a5 {[%clk 0:00:41]} 31. Kf2 {[%clk 0:00:53]}  Ra8 {[%clk 0:00:38]} 32. e5 {[%clk 0:00:51]}  fxe5 {[%clk 0:00:38]} 33. fxe5 {[%clk 0:00:52]}  d5 {[%clk 0:00:38]} 34. cxd5 {[%clk 0:00:48]}  cxd5 {[%clk 0:00:39]} 35. Rc2 {[%clk 0:00:47]}  Kd7 {[%clk 0:00:35]} 36. Rdc3 {[%clk 0:00:47]}  Ra7 {[%clk 0:00:34]} 37. Ke3 {[%clk 0:00:47]}  Be6 {[%clk 0:00:32]} 38. Kd4 {[%clk 0:00:48]}  a4 {[%clk 0:00:31]} 39. b4 {[%clk 0:00:47]}  a3 {[%clk 0:00:29]} 40. Rc6 {[%clk 0:00:42]}  Bf5 {[%clk 0:00:27]} 41. R2c3 {[%clk 0:00:41]}  Rb7 {[%clk 0:00:25]} 42. Kxd5 {[%clk 0:00:37]}  Bb1 {[%clk 0:00:05]} 43. e6+ {[%clk 0:00:34]}  Kd8 {[%clk 0:00:04]} 44. e7+ {[%clk 0:00:31]}  Kxe7 {[%clk 0:00:05]} 45. Rxc7+ {[%clk 0:00:31]}  Rxc7 {[%clk 0:00:06]} 46. Rxc7+ {[%clk 0:00:31]}  Kf6 {[%clk 0:00:07]} 47. Ra7 {[%clk 0:00:31]}  Bxa2+ {[%clk 0:00:07]} 48. Kd6 {[%clk 0:00:32]}  Bb1 {[%clk 0:00:05]} 49. Rxa3 {[%clk 0:00:33]}  Be4 {[%clk 0:00:04]} 50. g3 {[%clk 0:00:31]}  g5 {[%clk 0:00:04]} 51. b5 {[%clk 0:00:32]}  g4 {[%clk 0:00:05]} 52. b6 {[%clk 0:00:33]}  Kg7 {[%clk 0:00:05]} 53. b7 {[%clk 0:00:32]}  Bg6 {[%clk 0:00:06]} 54. b8=Q {[%clk 0:00:32]}  Kh7 {[%clk 0:00:06]} 55. Qf8 {[%clk 0:00:31]}  Bf7 {[%clk 0:00:05]} 56. Qxf7+ {[%clk 0:00:30]}  Kh8 {[%clk 0:00:06]} 57. Ra8# {[%clk 0:00:29]} 1-0


[Site "https://www.chess.com"]

[Event "Titled Tuesday Blitz June 27 Late 2023"]
[White "David, Bogdan-Emanuel"]
[Black "Prydun, Andriy"]
[WhiteFideId "1229907"]
[BlackFideId "14145898"]
[WhiteElo "2564"]
[BlackElo "2389"]
[Result "1/2-1/2"]
[Round "4"]
[TimeControl "180+2"]
[Date "2023.06.27"]
[WhiteClock "0:00:18"]
[BlackClock "0:00:05"]
[Board "95"]

1. e4 {[%clk 0:03:00]}  c5 {[%clk 0:01:46]} 2. Nc3 {[%clk 0:02:55]}  d6 {[%clk 0:01:45]} 3. f4 {[%clk 0:02:53]}  g6 {[%clk 0:01:38]} 4. Nf3 {[%clk 0:02:48]}  Bg7 {[%clk 0:01:39]} 5. Bb5+ {[%clk 0:02:38]}  Bd7 {[%clk 0:01:38]} 6. Bc4 {[%clk 0:02:34]}  Nc6 {[%clk 0:01:35]} 7. O-O {[%clk 0:02:05]}  e6 {[%clk 0:01:34]} 8. d3 {[%clk 0:02:02]}  Nge7 {[%clk 0:01:34]} 9. Qe1 {[%clk 0:01:56]}  O-O {[%clk 0:01:32]} 10. f5 {[%clk 0:01:51]}  exf5 {[%clk 0:01:31]} 11. Bg5 {[%clk 0:01:48]}  h6 {[%clk 0:01:28]} 12. Bf4 {[%clk 0:01:47]}  g5 {[%clk 0:01:27]} 13. Bxd6 {[%clk 0:01:47]}  f4 {[%clk 0:01:28]} 14. Bxc5 {[%clk 0:01:34]}  Re8 {[%clk 0:01:28]} 15. h4 {[%clk 0:01:24]}  Ng6 {[%clk 0:01:27]} 16. hxg5 {[%clk 0:01:16]}  hxg5 {[%clk 0:01:27]} 17. Ba3 {[%clk 0:01:15]}  g4 {[%clk 0:01:25]} 18. Nd2 {[%clk 0:01:15]}  Nce5 {[%clk 0:01:24]} 19. Bb3 {[%clk 0:01:07]}  Qg5 {[%clk 0:00:27]} 20. Nd5 {[%clk 0:00:50]}  g3 {[%clk 0:00:17]} 21. Rf3 {[%clk 0:00:21]}  Qh5 {[%clk 0:00:12]} 22. Kf1 {[%clk 0:00:21]}  Nxf3 {[%clk 0:00:09]} 23. Nxf3 {[%clk 0:00:20]}  Bh3 {[%clk 0:00:09]} 24. Qe2 {[%clk 0:00:17]}  Bg4 {[%clk 0:00:09]} 25. Ke1 {[%clk 0:00:16]}  Qh1+ {[%clk 0:00:07]} 26. Qf1 {[%clk 0:00:17]}  Qh5 {[%clk 0:00:06]} 27. Nc7 {[%clk 0:00:12]}  Bxf3 {[%clk 0:00:05]} 28. Qxf3 {[%clk 0:00:12]}  Qxf3 {[%clk 0:00:05]} 29. gxf3 {[%clk 0:00:13]}  Nh4 {[%clk 0:00:05]} 30. Nxa8 {[%clk 0:00:12]}  Nxf3+ {[%clk 0:00:05]} 31. Ke2 {[%clk 0:00:13]}  Nd4+ {[%clk 0:00:06]} 32. Kf1 {[%clk 0:00:13]}  Rxa8 {[%clk 0:00:05]} 33. Bd5 {[%clk 0:00:13]}  Rc8 {[%clk 0:00:04]} 34. c3 {[%clk 0:00:13]}  Nc2 {[%clk 0:00:05]} 35. Rc1 {[%clk 0:00:13]}  Nxa3 {[%clk 0:00:05]} 36. bxa3 {[%clk 0:00:13]}  Rxc3 {[%clk 0:00:05]} 37. Rxc3 {[%clk 0:00:13]}  Bxc3 {[%clk 0:00:06]} 38. Bxb7 {[%clk 0:00:14]}  f3 {[%clk 0:00:06]} 39. e5 {[%clk 0:00:14]}  f2 {[%clk 0:00:06]} 40. Kg2 {[%clk 0:00:13]}  Bxe5 {[%clk 0:00:07]} 41. Bf3 {[%clk 0:00:13]}  Kf8 {[%clk 0:00:07]} 42. Bd5 {[%clk 0:00:13]}  Ke7 {[%clk 0:00:07]} 43. a4 {[%clk 0:00:14]}  f6 {[%clk 0:00:07]} 44. Be4 {[%clk 0:00:14]}  Kd6 {[%clk 0:00:07]} 45. Bf3 {[%clk 0:00:14]}  Kc5 {[%clk 0:00:08]} 46. Be2 {[%clk 0:00:14]}  Kb4 {[%clk 0:00:07]} 47. d4 {[%clk 0:00:14]}  Bxd4 {[%clk 0:00:07]} 48. Kxg3 {[%clk 0:00:15]}  Kxa4 {[%clk 0:00:06]} 49. Kg2 {[%clk 0:00:15]}  Ka3 {[%clk 0:00:07]} 50. Bc4 {[%clk 0:00:15]}  Kb2 {[%clk 0:00:07]} 51. Kf1 {[%clk 0:00:15]}  Kc2 {[%clk 0:00:07]} 52. Bg8 {[%clk 0:00:16]}  Kd2 {[%clk 0:00:05]} 53. Bf7 {[%clk 0:00:17]}  f5 {[%clk 0:00:06]} 54. Bg8 {[%clk 0:00:17]}  Ke3 {[%clk 0:00:06]} 55. Bf7 {[%clk 0:00:18]}  Kf4 {[%clk 0:00:05]} 56. Bg8 {[%clk 0:00:19]}  Kg3 {[%clk 0:00:06]} 57. Bf7 {[%clk 0:00:18]}  Kf4 {[%clk 0:00:05]} 58. Bg8 {[%clk 0:00:18]} 1/2-1/2


[Site "https://www.chess.com"]

[Event "Titled Tuesday Blitz June 27 Late 2023"]
[White "Krishnan, Varun"]
[Black "Quirke, Jeffrey"]
[WhiteFideId "5054508"]
[BlackFideId "2013029"]
[WhiteElo "2536"]
[BlackElo "2248"]
[Result "1/2-1/2"]
[Round "4"]
[TimeControl "180+2"]
[Date "2023.06.27"]
[WhiteClock "0:00:28"]
[BlackClock "0:00:12"]
[Board "97"]

1. g3 {[%clk 0:02:56]}  c5 {[%clk 0:02:54]} 2. e4 {[%clk 0:02:52]}  Nc6 {[%clk 0:02:53]} 3. Bg2 {[%clk 0:02:50]}  g6 {[%clk 0:02:53]} 4. Ne2 {[%clk 0:02:48]}  Bg7 {[%clk 0:02:54]} 5. c3 {[%clk 0:02:49]}  e5 {[%clk 0:02:53]} 6. O-O {[%clk 0:02:47]}  Nge7 {[%clk 0:02:54]} 7. a3 {[%clk 0:02:40]}  a5 {[%clk 0:02:50]} 8. a4 {[%clk 0:02:33]}  O-O {[%clk 0:02:50]} 9. Na3 {[%clk 0:02:33]}  d5 {[%clk 0:02:43]} 10. exd5 {[%clk 0:02:31]}  Nxd5 {[%clk 0:02:43]} 11. Nb5 {[%clk 0:02:31]}  Be6 {[%clk 0:02:40]} 12. d4 {[%clk 0:02:26]}  cxd4 {[%clk 0:02:39]} 13. cxd4 {[%clk 0:02:26]}  exd4 {[%clk 0:02:38]} 14. Nexd4 {[%clk 0:02:18]}  Nxd4 {[%clk 0:02:32]} 15. Nxd4 {[%clk 0:02:19]}  Bc8 {[%clk 0:02:17]} 16. Nb5 {[%clk 0:02:14]}  Be6 {[%clk 0:02:02]} 17. Qe2 {[%clk 0:02:06]}  Qb6 {[%clk 0:01:45]} 18. Rd1 {[%clk 0:01:59]}  Nb4 {[%clk 0:01:18]} 19. Be3 {[%clk 0:01:56]}  Qa6 {[%clk 0:01:01]} 20. Rd6 {[%clk 0:01:51]}  Nc6 {[%clk 0:00:59]} 21. Rc1 {[%clk 0:01:35]}  Rac8 {[%clk 0:00:56]} 22. Bf4 {[%clk 0:01:17]}  Nd4 {[%clk 0:00:48]} 23. Nxd4 {[%clk 0:01:06]}  Rxc1+ {[%clk 0:00:45]} 24. Bxc1 {[%clk 0:01:03]}  Qxd6 {[%clk 0:00:43]} 25. Nxe6 {[%clk 0:00:53]}  Qxe6 {[%clk 0:00:42]} 26. Be3 {[%clk 0:00:51]}  Qb3 {[%clk 0:00:35]} 27. h4 {[%clk 0:00:33]}  Qxb2 {[%clk 0:00:34]} 28. Qc4 {[%clk 0:00:28]}  Qb4 {[%clk 0:00:31]} 29. Qc7 {[%clk 0:00:28]}  Qxa4 {[%clk 0:00:29]} 30. Qxb7 {[%clk 0:00:27]}  Qa1+ {[%clk 0:00:29]} 31. Kh2 {[%clk 0:00:26]}  a4 {[%clk 0:00:29]} 32. Bd5 {[%clk 0:00:24]}  Qf6 {[%clk 0:00:10]} 33. Qa7 {[%clk 0:00:17]}  Re8 {[%clk 0:00:07]} 34. Qxa4 {[%clk 0:00:13]}  Rxe3 {[%clk 0:00:06]} 35. fxe3 {[%clk 0:00:13]}  Qf2+ {[%clk 0:00:06]} 36. Bg2 {[%clk 0:00:14]}  Bf6 {[%clk 0:00:04]} 37. Qa8+ {[%clk 0:00:14]}  Kg7 {[%clk 0:00:04]} 38. Qf3 {[%clk 0:00:15]}  Qxf3 {[%clk 0:00:04]} 39. Bxf3 {[%clk 0:00:15]}  Be5 {[%clk 0:00:04]} 40. e4 {[%clk 0:00:16]}  h5 {[%clk 0:00:04]} 41. Kg2 {[%clk 0:00:16]}  Kf6 {[%clk 0:00:03]} 42. Bd1 {[%clk 0:00:17]}  Ke7 {[%clk 0:00:04]} 43. Kf3 {[%clk 0:00:17]}  Bd6 {[%clk 0:00:04]} 44. Bb3 {[%clk 0:00:18]}  Be5 {[%clk 0:00:04]} 45. Bc4 {[%clk 0:00:18]}  f6 {[%clk 0:00:05]} 46. Bd5 {[%clk 0:00:19]}  Kd6 {[%clk 0:00:05]} 47. Bb3 {[%clk 0:00:19]}  g5 {[%clk 0:00:06]} 48. Bf7 {[%clk 0:00:18]}  gxh4 {[%clk 0:00:06]} 49. gxh4 {[%clk 0:00:19]}  Ke7 {[%clk 0:00:04]} 50. Bxh5 {[%clk 0:00:20]}  Kf8 {[%clk 0:00:04]} 51. Bg6 {[%clk 0:00:20]}  Kg7 {[%clk 0:00:04]} 52. h5 {[%clk 0:00:20]}  Kh6 {[%clk 0:00:05]} 53. Kg4 {[%clk 0:00:20]}  Bc3 {[%clk 0:00:05]} 54. Kf5 {[%clk 0:00:20]}  Be5 {[%clk 0:00:06]} 55. Be8 {[%clk 0:00:20]}  Bd4 {[%clk 0:00:06]} 56. Kg4 {[%clk 0:00:21]}  Bc3 {[%clk 0:00:06]} 57. Bd7 {[%clk 0:00:21]}  Bd4 {[%clk 0:00:06]} 58. Bc6 {[%clk 0:00:22]}  Bc3 {[%clk 0:00:06]} 59. Bb5 {[%clk 0:00:23]}  Bd4 {[%clk 0:00:07]} 60. Ba4 {[%clk 0:00:23]}  Bc3 {[%clk 0:00:07]} 61. Bb3 {[%clk 0:00:24]}  Bd4 {[%clk 0:00:08]} 62. Bc2 {[%clk 0:00:24]}  Bc3 {[%clk 0:00:08]} 63. Bd1 {[%clk 0:00:25]}  Be5 {[%clk 0:00:09]} 64. Be2 {[%clk 0:00:25]}  Bc3 {[%clk 0:00:09]} 65. Bd3 {[%clk 0:00:26]}  Be5 {[%clk 0:00:09]} 66. Bc4 {[%clk 0:00:26]}  Bd4 {[%clk 0:00:10]} 67. Bd5 {[%clk 0:00:27]}  Be5 {[%clk 0:00:10]} 68. Be6 {[%clk 0:00:27]}  Bd4 {[%clk 0:00:10]} 69. Bf7 {[%clk 0:00:27]}  Be5 {[%clk 0:00:11]} 70. Bg6 {[%clk 0:00:27]}  Bd4 {[%clk 0:00:11]} 71. Kf3 {[%clk 0:00:27]}  Be5 {[%clk 0:00:11]} 72. Ke3 {[%clk 0:00:28]}  Bb2 {[%clk 0:00:11]} 73. Kf3 {[%clk 0:00:28]}  Be5 {[%clk 0:00:12]} 1/2-1/2


[Site "https://www.chess.com"]

[Event "Titled Tuesday Blitz June 27 Late 2023"]
[White "Tologon tegin, Semetei"]
[Black "Bazzano, Sebastian"]
[WhiteFideId "13800574"]
[BlackFideId "104566"]
[WhiteElo "2535"]
[BlackElo "2225"]
[Result "1-0"]
[Round "4"]
[TimeControl "180+2"]
[Date "2023.06.27"]
[WhiteClock "0:01:36"]
[BlackClock "0:00:02"]
[Board "98"]

1. g3 {[%clk 0:03:00]}  Nf6 {[%clk 0:02:58]} 2. Bg2 {[%clk 0:03:01]}  g6 {[%clk 0:02:58]} 3. e4 {[%clk 0:03:01]}  d6 {[%clk 0:02:57]} 4. d4 {[%clk 0:03:01]}  Bg7 {[%clk 0:02:57]} 5. Nc3 {[%clk 0:03:01]}  O-O {[%clk 0:02:58]} 6. Nge2 {[%clk 0:03:02]}  e5 {[%clk 0:02:55]} 7. h3 {[%clk 0:03:01]}  exd4 {[%clk 0:02:54]} 8. Nxd4 {[%clk 0:03:00]}  Nc6 {[%clk 0:02:47]} 9. Be3 {[%clk 0:03:00]}  Nxd4 {[%clk 0:02:45]} 10. Bxd4 {[%clk 0:02:59]}  a6 {[%clk 0:02:34]} 11. a4 {[%clk 0:02:58]}  Rb8 {[%clk 0:02:20]} 12. a5 {[%clk 0:02:54]}  Bd7 {[%clk 0:02:01]} 13. O-O {[%clk 0:02:53]}  Bc6 {[%clk 0:02:01]} 14. Re1 {[%clk 0:02:53]}  Re8 {[%clk 0:02:01]} 15. Qd3 {[%clk 0:02:43]}  Nd7 {[%clk 0:01:54]} 16. Bxg7 {[%clk 0:02:37]}  Kxg7 {[%clk 0:01:55]} 17. f4 {[%clk 0:02:37]}  Kg8 {[%clk 0:01:40]} 18. Rad1 {[%clk 0:02:35]}  Nc5 {[%clk 0:01:33]} 19. Qc4 {[%clk 0:02:35]}  Ne6 {[%clk 0:00:47]} 20. e5 {[%clk 0:01:59]}  Bxg2 {[%clk 0:00:45]} 21. Kxg2 {[%clk 0:01:59]}  Qc8 {[%clk 0:00:15]} 22. Ne4 {[%clk 0:01:52]}  Rf8 {[%clk 0:00:12]} 23. Nf6+ {[%clk 0:01:49]}  Kg7 {[%clk 0:00:12]} 24. Qc3 {[%clk 0:01:48]}  d5 {[%clk 0:00:07]} 25. Rxd5 {[%clk 0:01:46]}  c6 {[%clk 0:00:07]} 26. Rd7 {[%clk 0:01:46]}  b6 {[%clk 0:00:06]} 27. f5 {[%clk 0:01:38]}  gxf5 {[%clk 0:00:05]} 28. Qf3 {[%clk 0:01:38]}  Rb7 {[%clk 0:00:03]} 29. Qxf5 {[%clk 0:01:36]}  Rxd7 {[%clk 0:00:02]} 30. Qxh7# {[%clk 0:01:36]} 1-0


[Site "https://www.chess.com"]

[Event "Titled Tuesday Blitz June 27 Late 2023"]
[White "StiffMaster1"]
[Black "Palacio,Igor Da Paz"]
[BlackFideId "2121140"]
[WhiteElo "2521"]
[BlackElo "2223"]
[Result "0-1"]
[Round "4"]
[TimeControl "180+2"]
[Date "2023.06.27"]
[WhiteClock "0:00:04"]
[BlackClock "0:00:09"]
[Board "99"]

1. Nf3 {[%clk 0:03:00]}  Nf6 {[%clk 0:02:59]} 2. g3 {[%clk 0:03:00]}  g6 {[%clk 0:03:00]} 3. Bg2 {[%clk 0:03:01]}  Bg7 {[%clk 0:03:00]} 4. O-O {[%clk 0:03:02]}  O-O {[%clk 0:03:01]} 5. d3 {[%clk 0:03:03]}  d6 {[%clk 0:03:02]} 6. Nbd2 {[%clk 0:03:04]}  Nbd7 {[%clk 0:03:02]} 7. e4 {[%clk 0:03:05]}  e5 {[%clk 0:03:03]} 8. c3 {[%clk 0:03:05]}  Nc5 {[%clk 0:03:02]} 9. Qc2 {[%clk 0:03:05]}  Re8 {[%clk 0:03:00]} 10. b4 {[%clk 0:03:05]}  Ne6 {[%clk 0:02:58]} 11. a4 {[%clk 0:03:06]}  h6 {[%clk 0:02:57]} 12. a5 {[%clk 0:03:06]}  a6 {[%clk 0:02:51]} 13. Bb2 {[%clk 0:03:06]}  Ng5 {[%clk 0:02:45]} 14. Ne1 {[%clk 0:03:04]}  Nh3+ {[%clk 0:02:39]} 15. Kh1 {[%clk 0:02:34]}  g5 {[%clk 0:02:39]} 16. f3 {[%clk 0:02:29]}  h5 {[%clk 0:02:12]} 17. d4 {[%clk 0:02:23]}  h4 {[%clk 0:02:07]} 18. dxe5 {[%clk 0:02:08]}  dxe5 {[%clk 0:02:07]} 19. Nd3 {[%clk 0:01:57]}  Kh7 {[%clk 0:02:00]} 20. Nf2 {[%clk 0:01:36]}  Nxf2+ {[%clk 0:01:55]} 21. Rxf2 {[%clk 0:01:37]}  hxg3 {[%clk 0:01:30]} 22. hxg3 {[%clk 0:01:38]}  Rh8 {[%clk 0:01:23]} 23. Nc4 {[%clk 0:01:32]}  Kg8+ {[%clk 0:01:16]} 24. Kg1 {[%clk 0:01:30]}  Nh5 {[%clk 0:01:15]} 25. Rd2 {[%clk 0:00:51]}  Qe7 {[%clk 0:01:14]} 26. Kf2 {[%clk 0:00:50]}  g4 {[%clk 0:00:50]} 27. Ne3 {[%clk 0:00:41]}  Nxg3 {[%clk 0:00:37]} 28. Qd3 {[%clk 0:00:22]}  Be6 {[%clk 0:00:34]} 29. fxg4 {[%clk 0:00:19]}  Qh4 {[%clk 0:00:26]} 30. Kf3 {[%clk 0:00:18]}  Rh6 {[%clk 0:00:18]} 31. Nf5 {[%clk 0:00:16]}  Bxf5 {[%clk 0:00:09]} 32. Rh1 {[%clk 0:00:10]}  Qxg4+ {[%clk 0:00:04]} 33. Kf2 {[%clk 0:00:09]}  Qf4+ {[%clk 0:00:03]} 34. Ke1 {[%clk 0:00:08]}  Nxh1 {[%clk 0:00:03]} 35. exf5 {[%clk 0:00:07]}  Ng3 {[%clk 0:00:02]} 36. Kd1 {[%clk 0:00:06]}  e4 {[%clk 0:00:01]} 37. Qd5 {[%clk 0:00:04]}  Nxf5 {[%clk 0:00:01]} 38. Bxe4 {[%clk 0:00:04]}  Ne3+ {[%clk 0:00:01]} 39. Kc1 {[%clk 0:00:04]}  Nxd5 {[%clk 0:00:02]} 40. Bxd5 {[%clk 0:00:05]}  Qxd2+ {[%clk 0:00:02]} 41. Kxd2 {[%clk 0:00:04]}  Rh2+ {[%clk 0:00:02]} 42. Kc1 {[%clk 0:00:04]}  Rd8 {[%clk 0:00:03]} 43. Bxb7 {[%clk 0:00:04]}  Bh6+ {[%clk 0:00:03]} 44. Kb1 {[%clk 0:00:03]}  Rd6 {[%clk 0:00:04]} 45. c4 {[%clk 0:00:02]}  Rxb2+ {[%clk 0:00:03]} 46. Kxb2 {[%clk 0:00:02]}  Bg7+ {[%clk 0:00:03]} 47. Kb3 {[%clk 0:00:02]}  Rh6 {[%clk 0:00:03]} 48. b5 {[%clk 0:00:02]}  axb5 {[%clk 0:00:04]} 49. cxb5 {[%clk 0:00:03]}  Bd4 {[%clk 0:00:04]} 50. Kc4 {[%clk 0:00:03]}  Ba7 {[%clk 0:00:03]} 51. Bd5 {[%clk 0:00:03]}  Kf8 {[%clk 0:00:04]} 52. b6 {[%clk 0:00:02]}  cxb6 {[%clk 0:00:03]} 53. a6 {[%clk 0:00:02]}  Ke7 {[%clk 0:00:03]} 54. Kb5 {[%clk 0:00:03]}  Kd6 {[%clk 0:00:03]} 55. Bxf7 {[%clk 0:00:03]}  Rf6 {[%clk 0:00:02]} 56. Bc4 {[%clk 0:00:03]}  Kc7 {[%clk 0:00:03]} 57. Be2 {[%clk 0:00:03]}  Rf5+ {[%clk 0:00:03]} 58. Kb4 {[%clk 0:00:02]}  Ra5 {[%clk 0:00:04]} 59. Bb5 {[%clk 0:00:02]}  Ra1 {[%clk 0:00:04]} 60. Kc4 {[%clk 0:00:02]}  Rc1+ {[%clk 0:00:04]} 61. Kb4 {[%clk 0:00:03]}  Rc5 {[%clk 0:00:05]} 62. Ka4 {[%clk 0:00:03]}  Rxb5 {[%clk 0:00:04]} 63. Kxb5 {[%clk 0:00:04]}  Kd6 {[%clk 0:00:05]} 64. Kb4 {[%clk 0:00:02]}  Kc6 {[%clk 0:00:05]} 65. Kc4 {[%clk 0:00:03]}  b5+ {[%clk 0:00:05]} 66. Kb4 {[%clk 0:00:03]}  Kb6 {[%clk 0:00:06]} 67. Kb3 {[%clk 0:00:03]}  Kxa6 {[%clk 0:00:07]} 68. Kc3 {[%clk 0:00:04]}  Ka5 {[%clk 0:00:08]} 69. Kb3 {[%clk 0:00:05]}  b4 {[%clk 0:00:08]} 70. Kc2 {[%clk 0:00:06]}  Ka4 {[%clk 0:00:08]} 71. Kb2 {[%clk 0:00:04]}  b3 {[%clk 0:00:09]} 0-1


[Site "https://www.chess.com"]

[Event "Titled Tuesday Blitz June 27 Late 2023"]
[White "Nunez V, Gustavo Eduardo"]
[Black "Goryachkina, Aleksandra"]
[WhiteFideId "4403690"]
[BlackFideId "4147103"]
[WhiteElo "2416"]
[BlackElo "2658"]
[Result "0-1"]
[Round "4"]
[TimeControl "180+2"]
[Date "2023.06.27"]
[WhiteClock "0:01:05"]
[BlackClock "0:00:36"]
[Board "102"]

1. e4 {[%clk 0:03:00]}  c6 {[%clk 0:03:00]} 2. d3 {[%clk 0:02:59]}  d5 {[%clk 0:03:00]} 3. Nd2 {[%clk 0:03:00]}  g6 {[%clk 0:02:58]} 4. g3 {[%clk 0:02:59]}  Bg7 {[%clk 0:02:57]} 5. Bg2 {[%clk 0:03:00]}  e5 {[%clk 0:02:57]} 6. Ne2 {[%clk 0:02:56]}  Ne7 {[%clk 0:02:57]} 7. O-O {[%clk 0:02:57]}  O-O {[%clk 0:02:58]} 8. f4 {[%clk 0:02:57]}  dxe4 {[%clk 0:02:45]} 9. Nxe4 {[%clk 0:02:54]}  f5 {[%clk 0:02:44]} 10. N4c3 {[%clk 0:02:54]}  Nd7 {[%clk 0:02:43]} 11. h3 {[%clk 0:02:53]}  Kh8 {[%clk 0:02:42]} 12. Kh2 {[%clk 0:02:52]}  exf4 {[%clk 0:02:39]} 13. Bxf4 {[%clk 0:02:51]}  Nf6 {[%clk 0:02:39]} 14. Qd2 {[%clk 0:02:42]}  Be6 {[%clk 0:02:39]} 15. Bh6 {[%clk 0:02:42]}  Qd6 {[%clk 0:02:25]} 16. Bxg7+ {[%clk 0:02:42]}  Kxg7 {[%clk 0:02:25]} 17. Nf4 {[%clk 0:02:42]}  Bg8 {[%clk 0:02:23]} 18. Rae1 {[%clk 0:02:43]}  Rae8 {[%clk 0:02:23]} 19. Rf2 {[%clk 0:02:35]}  Nc8 {[%clk 0:02:11]} 20. Rfe2 {[%clk 0:02:35]}  Rxe2 {[%clk 0:02:05]} 21. Rxe2 {[%clk 0:02:36]}  g5 {[%clk 0:01:57]} 22. Ne6+ {[%clk 0:02:05]}  Bxe6 {[%clk 0:01:54]} 23. Qxg5+ {[%clk 0:02:06]}  Kf7 {[%clk 0:01:51]} 24. Re3 {[%clk 0:01:54]}  Rg8 {[%clk 0:01:47]} 25. Qh4 {[%clk 0:01:54]}  Ne7 {[%clk 0:01:41]} 26. Ne2 {[%clk 0:01:53]}  Ng6 {[%clk 0:01:28]} 27. Qh6 {[%clk 0:01:52]}  Qf8 {[%clk 0:01:27]} 28. Qxf8+ {[%clk 0:01:46]}  Rxf8 {[%clk 0:01:27]} 29. Nd4 {[%clk 0:01:47]}  Re8 {[%clk 0:01:26]} 30. c4 {[%clk 0:01:40]}  Bd7 {[%clk 0:01:25]} 31. Rf3 {[%clk 0:01:38]}  Ne5 {[%clk 0:01:24]} 32. Rf1 {[%clk 0:01:38]}  Nxd3 {[%clk 0:01:21]} 33. Rd1 {[%clk 0:01:31]}  Ne5 {[%clk 0:01:18]} 34. c5 {[%clk 0:01:29]}  Bc8 {[%clk 0:01:15]} 35. Rf1 {[%clk 0:01:26]}  Kg6 {[%clk 0:01:14]} 36. b4 {[%clk 0:01:25]}  Nd3 {[%clk 0:01:13]} 37. b5 {[%clk 0:01:24]}  cxb5 {[%clk 0:01:02]} 38. c6 {[%clk 0:01:23]}  bxc6 {[%clk 0:00:59]} 39. Bxc6 {[%clk 0:01:24]}  Rd8 {[%clk 0:00:57]} 40. Nxb5 {[%clk 0:01:20]}  a6 {[%clk 0:00:57]} 41. Nc3 {[%clk 0:01:17]}  Ne5 {[%clk 0:00:56]} 42. Bg2 {[%clk 0:01:11]}  Rd2 {[%clk 0:00:56]} 43. Kg1 {[%clk 0:01:10]}  Rc2 {[%clk 0:00:56]} 44. Na4 {[%clk 0:01:07]}  Rxa2 {[%clk 0:00:54]} 45. Nc5 {[%clk 0:01:08]}  Rc2 {[%clk 0:00:53]} 46. Nb3 {[%clk 0:01:08]}  Rc3 {[%clk 0:00:48]} 47. Nd4 {[%clk 0:01:08]}  Rxg3 {[%clk 0:00:47]} 48. Re1 {[%clk 0:01:07]}  Nd3 {[%clk 0:00:36]} 49. Rf1 {[%clk 0:01:00]}  Bb7 {[%clk 0:00:35]} 50. Nf3 {[%clk 0:00:58]}  Bxf3 {[%clk 0:00:30]} 51. Rxf3 {[%clk 0:00:57]}  Rxg2+ {[%clk 0:00:31]} 52. Kxg2 {[%clk 0:00:57]}  Ne1+ {[%clk 0:00:31]} 53. Kf2 {[%clk 0:00:57]}  Nxf3 {[%clk 0:00:32]} 54. Kxf3 {[%clk 0:00:58]}  Kg5 {[%clk 0:00:32]} 55. Kg3 {[%clk 0:00:58]}  f4+ {[%clk 0:00:32]} 56. Kf3 {[%clk 0:00:58]}  Kf5 {[%clk 0:00:33]} 57. h4 {[%clk 0:00:58]}  a5 {[%clk 0:00:33]} 58. Ke2 {[%clk 0:00:59]}  a4 {[%clk 0:00:34]} 59. Kd3 {[%clk 0:00:59]}  a3 {[%clk 0:00:34]} 60. Kc3 {[%clk 0:01:00]}  f3 {[%clk 0:00:35]} 61. Kb3 {[%clk 0:01:00]}  f2 {[%clk 0:00:35]} 62. Kxa3 {[%clk 0:01:01]}  f1=Q {[%clk 0:00:35]} 63. Kb3 {[%clk 0:01:02]}  Qc1 {[%clk 0:00:35]} 64. h5 {[%clk 0:01:02]}  Ke4 {[%clk 0:00:36]} 65. h6 {[%clk 0:01:02]}  Kd4 {[%clk 0:00:36]} 66. Kb4 {[%clk 0:01:03]}  Qb1+ {[%clk 0:00:36]} 67. Ka5 {[%clk 0:01:04]}  Kc5 {[%clk 0:00:37]} 68. Ka6 {[%clk 0:01:05]}  Qb6# {[%clk 0:00:36]} 0-1


[Site "https://www.chess.com"]